[Event "Early-Titled-Tuesday-Blitz-April-23-2024"]
[Site "Chess.com"]
[Date "2024.04.23"]
[Round "4"]
[White "JSPrepz"]
[Black "AlexanderKing"]
[Result "1-0"]
[WhiteElo "2808"]
[BlackElo "2585"]
[TimeControl "180+1"]
[EndTime "8:39:40 PDT"]
[Termination "JSPrepz won on time"]

1. e4 {[%clk 0:03:00.9]} 1... c5 {[%clk 0:02:59.1]} 2. Nf3 {[%clk 0:03:01.1]}
2... e6 {[%clk 0:02:59.4]} 3. b4 {[%clk 0:03:00.5]} 3... cxb4 {[%clk 0:02:56.7]}
4. a3 {[%clk 0:03:00.9]} 4... d5 {[%clk 0:02:52.9]} 5. e5 {[%clk 0:03:01.5]}
5... Nc6 {[%clk 0:02:50.1]} 6. d4 {[%clk 0:03:01.5]} 6... Bd7 {[%clk 0:02:46]}
7. axb4 {[%clk 0:03:00.9]} 7... Bxb4+ {[%clk 0:02:46.9]} 8. c3 {[%clk
0:03:01.5]} 8... Ba5 {[%clk 0:02:45.1]} 9. Bd3 {[%clk 0:03:02.1]} 9... Nge7
{[%clk 0:02:41.1]} 10. O-O {[%clk 0:02:48.8]} 10... Nf5 {[%clk 0:02:30.8]} 11.
Ba3 {[%clk 0:02:47.4]} 11... a6 {[%clk 0:02:16.7]} 12. Re1 {[%clk 0:02:18.5]}
12... h6 {[%clk 0:02:10.4]} 13. Qc2 {[%clk 0:02:13.2]} 13... Nfxd4 {[%clk
0:01:58.9]} 14. cxd4 {[%clk 0:02:08.4]} 14... Nxd4 {[%clk 0:01:59.1]} 15. Nxd4
{[%clk 0:02:05.6]} 15... Bxe1 {[%clk 0:02:00]} 16. Nc3 {[%clk 0:01:54]} 16...
Bxc3 {[%clk 0:01:56]} 17. Qxc3 {[%clk 0:01:54.9]} 17... f5 {[%clk 0:01:43.3]}
18. Qc5 {[%clk 0:01:15.9]} 18... Kf7 {[%clk 0:01:37.7]} 19. Qd6 {[%clk
0:01:15.7]} 19... Re8 {[%clk 0:01:30.4]} 20. h4 {[%clk 0:01:08.4]} 20... Rc8
{[%clk 0:01:19.1]} 21. Rb1 {[%clk 0:01:00.1]} 21... Bc6 {[%clk 0:00:39.6]} 22.
Nxc6 {[%clk 0:00:53.9]} 22... bxc6 {[%clk 0:00:27.8]} 23. Rb7+ {[%clk
0:00:53.3]} 23... Kg8 {[%clk 0:00:27.6]} 24. Qc5 {[%clk 0:00:46.6]} 24... Qxh4
{[%clk 0:00:18]} 25. Qa7 {[%clk 0:00:39.2]} 25... Qg4 {[%clk 0:00:10.6]} 26. Be2
{[%clk 0:00:36.5]} 26... Qg5 {[%clk 0:00:03.2]} 27. Bh5 {[%clk 0:00:29.1]} 27...
Rf8 {[%clk 0:00:01.8]} 28. Bf7+ {[%clk 0:00:25.7]} 28... Kh8 {[%clk 0:00:01.5]}
29. Bxf8 {[%clk 0:00:21.4]} 29... Rxf8 {[%clk 0:00:02.4]} 30. Bxe6 {[%clk
0:00:20.5]} 30... Qc1+ {[%clk 0:00:02.4]} 31. Kh2 {[%clk 0:00:21.2]} 31... Qf4+
{[%clk 0:00:02.8]} 32. g3 {[%clk 0:00:21.8]} 32... Qxe5 {[%clk 0:00:01.2]} 33.
Rf7 {[%clk 0:00:19.4]} 1-0

[Event "Early-Titled-Tuesday-Blitz-April-23-2024"]
[Site "Chess.com"]
[Date "2024.04.23"]
[Round "4"]
[White "profedechess93"]
[Black "Jojo_898"]
[Result "1-0"]
[WhiteElo "2677"]
[BlackElo "2441"]
[TimeControl "180+1"]
[EndTime "8:39:40 PDT"]
[Termination "profedechess93 won by resignation"]

1. e4 {[%clk 0:03:00.9]} 1... d6 {[%clk 0:03:00]} 2. d4 {[%clk 0:03:00.6]} 2...
Nf6 {[%clk 0:03:00.6]} 3. Nc3 {[%clk 0:03:01.1]} 3... g6 {[%clk 0:03:01.3]} 4.
f3 {[%clk 0:03:01.5]} 4... c6 {[%clk 0:03:02]} 5. Be3 {[%clk 0:03:02.1]} 5... b5
{[%clk 0:03:01.9]} 6. Qd2 {[%clk 0:03:02]} 6... h5 {[%clk 0:03:00.2]} 7. a4
{[%clk 0:03:01.3]} 7... b4 {[%clk 0:02:59.6]} 8. Na2 {[%clk 0:03:01.9]} 8... a5
{[%clk 0:02:59.2]} 9. c3 {[%clk 0:03:02.6]} 9... bxc3 {[%clk 0:02:56.6]} 10.
Nxc3 {[%clk 0:03:03.5]} 10... Bg7 {[%clk 0:02:56.3]} 11. Bc4 {[%clk 0:02:53.7]}
11... O-O {[%clk 0:02:47.2]} 12. Nge2 {[%clk 0:02:52.8]} 12... d5 {[%clk
0:02:44.9]} 13. Ba2 {[%clk 0:02:40.2]} 13... dxe4 {[%clk 0:02:39.6]} 14. fxe4
{[%clk 0:02:13.2]} 14... Ng4 {[%clk 0:02:36.2]} 15. O-O {[%clk 0:02:12]} 15...
Nxe3 {[%clk 0:02:34.5]} 16. Qxe3 {[%clk 0:02:12.9]} 16... Na6 {[%clk 0:02:20.4]}
17. Rad1 {[%clk 0:01:57.9]} 17... Nb4 {[%clk 0:02:19.7]} 18. Bb3 {[%clk
0:01:58]} 18... Ba6 {[%clk 0:02:09.5]} 19. Kh1 {[%clk 0:01:11.3]} 19... e6
{[%clk 0:02:01.1]} 20. Rf3 {[%clk 0:00:48.7]} 20... Rb8 {[%clk 0:01:55.9]} 21.
Nf4 {[%clk 0:00:45.9]} 21... Qd7 {[%clk 0:01:08.2]} 22. Rg3 {[%clk 0:00:42.2]}
22... Kh7 {[%clk 0:00:58.7]} 23. Qf3 {[%clk 0:00:30.5]} 23... Nd3 {[%clk
0:00:25.5]} 24. Rxd3 {[%clk 0:00:23.4]} 24... Rxb3 {[%clk 0:00:22.6]} 25. Rd2
{[%clk 0:00:18.8]} 25... Kg8 {[%clk 0:00:19.5]} 26. e5 {[%clk 0:00:17]} 26... c5
{[%clk 0:00:16.9]} 27. Qd1 {[%clk 0:00:12.2]} 27... Rd8 {[%clk 0:00:16.2]} 28.
Qxb3 {[%clk 0:00:11.5]} 28... cxd4 {[%clk 0:00:16.1]} 29. Ne4 {[%clk 0:00:12.1]}
29... Bxe5 {[%clk 0:00:15.8]} 30. Nxh5 {[%clk 0:00:12.4]} 30... Bxg3 {[%clk
0:00:15.8]} 31. Nhf6+ {[%clk 0:00:12.7]} 1-0

[Event "Early-Titled-Tuesday-Blitz-April-23-2024"]
[Site "Chess.com"]
[Date "2024.04.23"]
[Round "4"]
[White "VirtualCoach"]
[Black "ReinisUz"]
[Result "0-1"]
[WhiteElo "2002"]
[BlackElo "2461"]
[TimeControl "180+1"]
[EndTime "8:39:40 PDT"]
[Termination "ReinisUz won by resignation"]

1. Nf3 {[%clk 0:03:00.9]} 1... c5 {[%clk 0:02:58.6]} 2. b3 {[%clk 0:03:00.6]}
2... Nc6 {[%clk 0:02:58.8]} 3. Bb2 {[%clk 0:03:00.6]} 3... Nf6 {[%clk
0:02:59.4]} 4. g3 {[%clk 0:03:00.9]} 4... g6 {[%clk 0:02:59.3]} 5. Bg2 {[%clk
0:03:00.7]} 5... Bg7 {[%clk 0:02:59.5]} 6. c4 {[%clk 0:03:00.1]} 6... O-O {[%clk
0:02:59.3]} 7. O-O {[%clk 0:03:00.1]} 7... d6 {[%clk 0:02:59.3]} 8. d4 {[%clk
0:02:59.1]} 8... Ne4 {[%clk 0:02:55.3]} 9. Nbd2 {[%clk 0:02:56.6]} 9... Bf5
{[%clk 0:02:50.5]} 10. Nxe4 {[%clk 0:02:47.8]} 10... Bxe4 {[%clk 0:02:51.4]} 11.
e3 {[%clk 0:02:47.4]} 11... Qd7 {[%clk 0:02:41.4]} 12. Qd2 {[%clk 0:02:13.1]}
12... cxd4 {[%clk 0:02:34.4]} 13. exd4 {[%clk 0:02:12.2]} 13... d5 {[%clk
0:02:30]} 14. Rad1 {[%clk 0:01:58.5]} 14... Rad8 {[%clk 0:02:26.8]} 15. Ne5
{[%clk 0:01:49.1]} 15... Nxe5 {[%clk 0:02:10.8]} 16. dxe5 {[%clk 0:01:47.6]}
16... Bxg2 {[%clk 0:02:10.6]} 17. Kxg2 {[%clk 0:01:47.9]} 17... d4 {[%clk
0:02:09.1]} 18. Qxd4 {[%clk 0:01:45.5]} 18... Qc6+ {[%clk 0:02:08.8]} 19. Qd5
{[%clk 0:01:35.9]} 19... Rxd5 {[%clk 0:02:05.8]} 20. cxd5 {[%clk 0:01:36.8]}
20... Qd7 {[%clk 0:02:04.1]} 21. Rfe1 {[%clk 0:01:35.1]} 21... Rc8 {[%clk
0:01:59.7]} 22. Rd2 {[%clk 0:01:27.2]} 22... Bh6 {[%clk 0:01:50.9]} 23. f4
{[%clk 0:01:11.1]} 23... Bg7 {[%clk 0:01:41.3]} 24. Red1 {[%clk 0:01:08.4]}
24... a5 {[%clk 0:01:34.1]} 25. h3 {[%clk 0:00:58.9]} 25... a4 {[%clk
0:01:31.9]} 26. b4 {[%clk 0:00:53]} 26... Qb5 {[%clk 0:01:23.9]} 27. a3 {[%clk
0:00:51.2]} 27... Qc4 {[%clk 0:01:22.9]} 28. Kh2 {[%clk 0:00:46]} 28... Qb3
{[%clk 0:01:16.6]} 29. Bd4 {[%clk 0:00:16.5]} 29... Qxa3 {[%clk 0:01:14]} 30.
Bc5 {[%clk 0:00:16.8]} 30... Bf8 {[%clk 0:01:12.8]} 31. d6 {[%clk 0:00:15.3]}
31... exd6 {[%clk 0:01:10.4]} 32. exd6 {[%clk 0:00:16.2]} 32... Rd8 {[%clk
0:01:06.4]} 33. Bb6 {[%clk 0:00:11.9]} 33... Rd7 {[%clk 0:01:06.4]} 34. Bc5
{[%clk 0:00:11]} 34... Qc3 {[%clk 0:01:00.9]} 35. Rd5 {[%clk 0:00:10]} 35... a3
{[%clk 0:00:59]} 36. R1d3 {[%clk 0:00:09.8]} 36... Qc2+ {[%clk 0:00:55.9]} 37.
Rd2 {[%clk 0:00:10.1]} 37... Qc4 {[%clk 0:00:56.4]} 38. R2d4 {[%clk 0:00:09.9]}
38... Qe2+ {[%clk 0:00:50.6]} 39. Kh1 {[%clk 0:00:08.3]} 39... a2 {[%clk
0:00:51.1]} 40. Rd1 {[%clk 0:00:07.5]} 40... a1=Q {[%clk 0:00:49.4]} 41. Rxa1
{[%clk 0:00:06.6]} 41... Qf3+ {[%clk 0:00:50.1]} 42. Kh2 {[%clk 0:00:06.4]}
42... Qxd5 {[%clk 0:00:50.7]} 0-1

[Event "Early-Titled-Tuesday-Blitz-April-23-2024"]
[Site "Chess.com"]
[Date "2024.04.23"]
[Round "4"]
[White "eagleclaw07"]
[Black "Polish_fighter3000"]
[Result "0-1"]
[WhiteElo "2882"]
[BlackElo "3110"]
[TimeControl "180+1"]
[EndTime "8:39:41 PDT"]
[Termination "Polish_fighter3000 won by resignation"]

1. d4 {[%clk 0:03:00.9]} 1... Nf6 {[%clk 0:02:58.8]} 2. c4 {[%clk 0:03:01.4]}
2... g6 {[%clk 0:02:59.3]} 3. g3 {[%clk 0:03:01.4]} 3... Bg7 {[%clk 0:02:58.3]}
4. Bg2 {[%clk 0:03:02]} 4... d5 {[%clk 0:02:58.8]} 5. cxd5 {[%clk 0:03:01.7]}
5... Nxd5 {[%clk 0:02:59.7]} 6. Nf3 {[%clk 0:03:02.4]} 6... O-O {[%clk
0:02:59.4]} 7. O-O {[%clk 0:03:02.7]} 7... Nc6 {[%clk 0:02:55.3]} 8. e4 {[%clk
0:02:58.3]} 8... Nb6 {[%clk 0:02:55.1]} 9. d5 {[%clk 0:02:58.4]} 9... Na5 {[%clk
0:02:54.3]} 10. Qc2 {[%clk 0:02:58.4]} 10... c6 {[%clk 0:02:46]} 11. Bd2 {[%clk
0:02:25.8]} 11... Nac4 {[%clk 0:02:43.6]} 12. Bc3 {[%clk 0:02:24.9]} 12... cxd5
{[%clk 0:02:39.2]} 13. Bxg7 {[%clk 0:02:24.8]} 13... Kxg7 {[%clk 0:02:40.1]} 14.
exd5 {[%clk 0:02:24.7]} 14... Qxd5 {[%clk 0:02:35.7]} 15. Nc3 {[%clk 0:02:23.9]}
15... Qf5 {[%clk 0:02:35]} 16. Qe2 {[%clk 0:02:22.4]} 16... Qe6 {[%clk
0:02:28.1]} 17. Qc2 {[%clk 0:02:21.3]} 17... Qf6 {[%clk 0:02:25.3]} 18. Rfe1
{[%clk 0:02:18.3]} 18... Bf5 {[%clk 0:02:24.2]} 19. Qb3 {[%clk 0:02:18.1]} 19...
Rfd8 {[%clk 0:02:18.7]} 20. Qb4 {[%clk 0:02:10.3]} 20... Rac8 {[%clk 0:02:12.5]}
21. a4 {[%clk 0:01:43.9]} 21... Nxb2 {[%clk 0:01:38]} 22. Qxb2 {[%clk
0:01:30.4]} 22... Qxc3 {[%clk 0:01:36.7]} 23. Qxc3+ {[%clk 0:01:28.4]} 23...
Rxc3 {[%clk 0:01:37.6]} 24. Rxe7 {[%clk 0:01:27.3]} 24... Rd7 {[%clk 0:01:23.1]}
25. Rxd7 {[%clk 0:01:24.4]} 25... Bxd7 {[%clk 0:01:17.6]} 26. a5 {[%clk
0:01:24.9]} 26... Nc4 {[%clk 0:01:15.1]} 27. Nd4 {[%clk 0:01:20.2]} 27... Nxa5
{[%clk 0:01:14.7]} 28. h4 {[%clk 0:00:58.4]} 28... b6 {[%clk 0:01:10.7]} 29. Re1
{[%clk 0:00:57.1]} 29... Rd3 {[%clk 0:01:08.7]} 30. Nf3 {[%clk 0:00:56.2]} 30...
Nc6 {[%clk 0:01:07.7]} 31. Ng5 {[%clk 0:00:55.1]} 31... h6 {[%clk 0:01:07.4]}
32. Ne4 {[%clk 0:00:55]} 32... Nd4 {[%clk 0:01:04.6]} 33. Ra1 {[%clk 0:00:50.1]}
33... a5 {[%clk 0:01:02.8]} 34. Rb1 {[%clk 0:00:49.4]} 34... Rb3 {[%clk
0:00:42.3]} 35. Rd1 {[%clk 0:00:47.8]} 35... Rb4 {[%clk 0:00:42.8]} 36. Nc3
{[%clk 0:00:45.6]} 36... Bg4 {[%clk 0:00:41.4]} 37. Rd3 {[%clk 0:00:41.2]} 37...
Ne2+ {[%clk 0:00:41.4]} 38. Nxe2 {[%clk 0:00:41.3]} 38... Bxe2 {[%clk
0:00:42.3]} 39. Rd7 {[%clk 0:00:41.1]} 39... Bc4 {[%clk 0:00:42.6]} 40. Ra7
{[%clk 0:00:32.9]} 40... a4 {[%clk 0:00:42.5]} 41. Bc6 {[%clk 0:00:33.5]} 41...
b5 {[%clk 0:00:42.6]} 42. Ra5 {[%clk 0:00:30.9]} 42... Rb3 {[%clk 0:00:42.3]}
43. Kg2 {[%clk 0:00:25.4]} 43... a3 {[%clk 0:00:42.4]} 44. Ra7 {[%clk
0:00:23.8]} 44... b4 {[%clk 0:00:41.4]} 45. Ra5 {[%clk 0:00:22.1]} 45... Rc3
{[%clk 0:00:37.6]} 46. Be4 {[%clk 0:00:21.1]} 46... a2 {[%clk 0:00:37.2]} 47.
Ra7 {[%clk 0:00:21]} 47... b3 {[%clk 0:00:37.2]} 0-1

[Event "Early-Titled-Tuesday-Blitz-April-23-2024"]
[Site "Chess.com"]
[Date "2024.04.23"]
[Round "4"]
[White "toninhojit"]
[Black "ubdip"]
[Result "1-0"]
[WhiteElo "2560"]
[BlackElo "2367"]
[TimeControl "180+1"]
[EndTime "8:39:41 PDT"]
[Termination "toninhojit won by resignation"]

1. d4 {[%clk 0:03:00.9]} 1... d5 {[%clk 0:02:56.6]} 2. c4 {[%clk 0:03:01]} 2...
e6 {[%clk 0:02:56.5]} 3. Nc3 {[%clk 0:02:58.6]} 3... Nf6 {[%clk 0:02:55.1]} 4.
Nf3 {[%clk 0:02:57]} 4... Be7 {[%clk 0:02:53.9]} 5. Bf4 {[%clk 0:02:56.4]} 5...
c6 {[%clk 0:02:51.1]} 6. e3 {[%clk 0:02:56.2]} 6... Nbd7 {[%clk 0:02:50]} 7. Be2
{[%clk 0:02:54.9]} 7... h6 {[%clk 0:02:49.3]} 8. O-O {[%clk 0:02:54.1]} 8... O-O
{[%clk 0:02:48.9]} 9. h3 {[%clk 0:02:54.7]} 9... Ne4 {[%clk 0:02:48.8]} 10. Nxe4
{[%clk 0:02:52.4]} 10... dxe4 {[%clk 0:02:49.7]} 11. Nd2 {[%clk 0:02:52.6]}
11... f5 {[%clk 0:02:47.9]} 12. f3 {[%clk 0:02:50.7]} 12... exf3 {[%clk
0:02:46.9]} 13. Bxf3 {[%clk 0:02:43.5]} 13... Bf6 {[%clk 0:02:43.9]} 14. Bd6
{[%clk 0:02:35.5]} 14... Be7 {[%clk 0:02:36.7]} 15. Bh2 {[%clk 0:02:34]} 15...
Bg5 {[%clk 0:02:33]} 16. Re1 {[%clk 0:02:31.2]} 16... Bh4 {[%clk 0:02:31.8]} 17.
Re2 {[%clk 0:02:28.7]} 17... Qe7 {[%clk 0:02:23.9]} 18. c5 {[%clk 0:02:28.5]}
18... Kh8 {[%clk 0:02:20.6]} 19. Bd6 {[%clk 0:02:26.9]} 19... Qe8 {[%clk
0:02:19.9]} 20. Bxf8 {[%clk 0:02:26.6]} 20... Qxf8 {[%clk 0:02:20.8]} 21. Nc4
{[%clk 0:02:27]} 21... Nf6 {[%clk 0:02:19.8]} 22. Nd6 {[%clk 0:02:26.2]} 22...
Bg3 {[%clk 0:02:16.7]} 23. Nc4 {[%clk 0:02:15]} 23... Bd7 {[%clk 0:02:12]} 24.
e4 {[%clk 0:02:08.8]} 24... Be8 {[%clk 0:02:08.4]} 25. e5 {[%clk 0:02:06.9]}
25... Nd5 {[%clk 0:02:06]} 26. Nd6 {[%clk 0:02:03]} 26... Nf4 {[%clk 0:01:59.9]}
27. Rd2 {[%clk 0:01:53.5]} 27... Qe7 {[%clk 0:01:53.4]} 28. Qf1 {[%clk
0:01:36.1]} 28... Qg5 {[%clk 0:01:51.2]} 29. Rdd1 {[%clk 0:01:23.4]} 29... Kh7
{[%clk 0:01:43.4]} 30. Kh1 {[%clk 0:01:22.1]} 30... Bh5 {[%clk 0:01:42.4]} 31.
Bxh5 {[%clk 0:01:19.4]} 31... Nxh5 {[%clk 0:01:43.3]} 32. Qf3 {[%clk 0:01:14.8]}
32... Bf4 {[%clk 0:01:31]} 33. g4 {[%clk 0:01:02.1]} 33... Ng3+ {[%clk
0:01:08.9]} 34. Kg2 {[%clk 0:01:02.1]} 34... Rf8 {[%clk 0:01:02.4]} 35. Rf1
{[%clk 0:00:53.5]} 35... fxg4 {[%clk 0:00:55.4]} 36. Qxg4 {[%clk 0:00:52.2]}
36... Qxg4 {[%clk 0:00:45.8]} 37. hxg4 {[%clk 0:00:53.1]} 37... Ne2 {[%clk
0:00:45.2]} 38. Rad1 {[%clk 0:00:47.5]} 38... g5 {[%clk 0:00:30.4]} 39. Rf3
{[%clk 0:00:43.1]} 39... h5 {[%clk 0:00:24]} 40. gxh5 {[%clk 0:00:40.6]} 40...
Kh6 {[%clk 0:00:20.3]} 41. Ne4 {[%clk 0:00:38.6]} 41... g4 {[%clk 0:00:17.4]}
42. Rf2 {[%clk 0:00:37.6]} 42... Kxh5 {[%clk 0:00:12.8]} 43. Rxe2 {[%clk
0:00:37]} 43... Rh8 {[%clk 0:00:11.9]} 44. Rh1+ {[%clk 0:00:37.9]} 44... Kg6
{[%clk 0:00:11.3]} 45. Rxh8 {[%clk 0:00:38.8]} 1-0

[Event "Early-Titled-Tuesday-Blitz-April-23-2024"]
[Site "Chess.com"]
[Date "2024.04.23"]
[Round "4"]
[White "rikchessmx"]
[Black "Dr_Pepper18"]
[Result "1-0"]
[WhiteElo "2256"]
[BlackElo "2463"]
[TimeControl "180+1"]
[EndTime "8:39:43 PDT"]
[Termination "rikchessmx won by resignation"]

1. e4 {[%clk 0:03:00.9]} 1... c5 {[%clk 0:02:57.6]} 2. Nf3 {[%clk 0:02:55.8]}
2... d6 {[%clk 0:02:57.1]} 3. d4 {[%clk 0:02:54.8]} 3... cxd4 {[%clk 0:02:58]}
4. Nxd4 {[%clk 0:02:55.2]} 4... Nf6 {[%clk 0:02:57.8]} 5. Nc3 {[%clk 0:02:56.1]}
5... a6 {[%clk 0:02:57.6]} 6. f4 {[%clk 0:02:56.6]} 6... e5 {[%clk 0:02:56.6]}
7. Nf3 {[%clk 0:02:52.9]} 7... Nbd7 {[%clk 0:02:55.2]} 8. Bd3 {[%clk 0:02:52.6]}
8... Be7 {[%clk 0:02:48.8]} 9. O-O {[%clk 0:02:51.9]} 9... O-O {[%clk
0:02:43.1]} 10. Kh1 {[%clk 0:02:49]} 10... b5 {[%clk 0:02:40.2]} 11. a3 {[%clk
0:02:49.4]} 11... Bb7 {[%clk 0:02:40.1]} 12. Qe1 {[%clk 0:02:49.6]} 12... Re8
{[%clk 0:02:27.7]} 13. fxe5 {[%clk 0:02:49.3]} 13... dxe5 {[%clk 0:02:08.9]} 14.
Bg5 {[%clk 0:02:45]} 14... h6 {[%clk 0:01:56.2]} 15. Be3 {[%clk 0:02:39.8]}
15... Bc5 {[%clk 0:01:50.6]} 16. Bxc5 {[%clk 0:02:33.7]} 16... Nxc5 {[%clk
0:01:51.5]} 17. Rd1 {[%clk 0:02:33.7]} 17... Qb6 {[%clk 0:01:44.8]} 18. Nh4
{[%clk 0:02:27.7]} 18... b4 {[%clk 0:01:29.8]} 19. axb4 {[%clk 0:02:23.4]} 19...
Qxb4 {[%clk 0:01:30.7]} 20. Rxf6 {[%clk 0:02:22.8]} 20... gxf6 {[%clk
0:01:27.9]} 21. Nf5 {[%clk 0:02:22.1]} 21... Ne6 {[%clk 0:01:22.3]} 22. Qh4
{[%clk 0:02:09.8]} 22... Qf8 {[%clk 0:00:56.7]} 23. Nxh6+ {[%clk 0:02:07.5]}
23... Kh7 {[%clk 0:00:46.8]} 24. Ng4+ {[%clk 0:02:04.3]} 24... Kg8 {[%clk
0:00:39.8]} 25. Nxf6+ {[%clk 0:02:03.8]} 25... Kg7 {[%clk 0:00:40.3]} 26. Nh5+
{[%clk 0:02:00.2]} 26... Kg8 {[%clk 0:00:37.5]} 27. Nd5 {[%clk 0:01:58.1]} 27...
Bxd5 {[%clk 0:00:35.2]} 28. exd5 {[%clk 0:01:57.6]} 28... Nf4 {[%clk 0:00:31.6]}
29. Nf6+ {[%clk 0:01:54]} 29... Kg7 {[%clk 0:00:31.8]} 30. Qg5+ {[%clk
0:01:53.5]} 30... Ng6 {[%clk 0:00:29.8]} 31. Nxe8+ {[%clk 0:01:39.9]} 31... Rxe8
{[%clk 0:00:30.7]} 32. Rf1 {[%clk 0:01:38.6]} 32... e4 {[%clk 0:00:27.1]} 33.
Qf6+ {[%clk 0:01:32.6]} 33... Kg8 {[%clk 0:00:27.1]} 34. Bc4 {[%clk 0:01:31.8]}
34... Qg7 {[%clk 0:00:21.7]} 35. d6 {[%clk 0:01:28.7]} 35... Qxf6 {[%clk
0:00:21.8]} 36. Rxf6 {[%clk 0:01:27.9]} 36... Ne5 {[%clk 0:00:22.4]} 37. Bxa6
{[%clk 0:01:19.8]} 37... Kg7 {[%clk 0:00:19.1]} 38. Rf1 {[%clk 0:01:17.3]} 38...
Rd8 {[%clk 0:00:18.6]} 39. Rd1 {[%clk 0:01:15.5]} 39... Ng4 {[%clk 0:00:16.3]}
40. Kg1 {[%clk 0:01:13.7]} 40... Ne3 {[%clk 0:00:16.3]} 41. Rd2 {[%clk
0:01:09.4]} 41... Nf5 {[%clk 0:00:15.5]} 42. d7 {[%clk 0:01:09.4]} 42... e3
{[%clk 0:00:15.1]} 43. Rd5 {[%clk 0:01:08.4]} 43... Kf6 {[%clk 0:00:11.8]} 44.
Kf1 {[%clk 0:01:07.6]} 44... Ne7 {[%clk 0:00:08]} 45. Rd3 {[%clk 0:01:05.1]}
45... Nc6 {[%clk 0:00:07.5]} 46. Bc8 {[%clk 0:01:01.9]} 46... Na7 {[%clk
0:00:04.1]} 47. Rc3 {[%clk 0:00:58.2]} 47... Nb5 {[%clk 0:00:03.6]} 48. Rc6+
{[%clk 0:00:57.4]} 48... Nd6 {[%clk 0:00:04.5]} 49. Rxd6+ {[%clk 0:00:56.9]} 1-0

[Event "Early-Titled-Tuesday-Blitz-April-23-2024"]
[Site "Chess.com"]
[Date "2024.04.23"]
[Round "4"]
[White "Bogdan_Bodnar"]
[Black "zverr1"]
[Result "0-1"]
[WhiteElo "2237"]
[BlackElo "2489"]
[TimeControl "180+1"]
[EndTime "8:39:44 PDT"]
[Termination "zverr1 won on time"]

1. c4 {[%clk 0:03:00.9]} 1... c5 {[%clk 0:02:56.7]} 2. Nc3 {[%clk 0:03:00.2]}
2... g6 {[%clk 0:02:53.9]} 3. g3 {[%clk 0:03:00.3]} 3... Nc6 {[%clk 0:02:54]} 4.
Bg2 {[%clk 0:03:01.2]} 4... Bg7 {[%clk 0:02:54.5]} 5. e4 {[%clk 0:03:01.8]} 5...
e5 {[%clk 0:02:55]} 6. Nge2 {[%clk 0:03:02.4]} 6... Nge7 {[%clk 0:02:55.6]} 7.
O-O {[%clk 0:03:03]} 7... O-O {[%clk 0:02:56.4]} 8. d3 {[%clk 0:03:03.6]} 8...
d6 {[%clk 0:02:57.2]} 9. f4 {[%clk 0:03:04.1]} 9... f5 {[%clk 0:02:56.3]} 10. h3
{[%clk 0:03:03.4]} 10... Nd4 {[%clk 0:02:54]} 11. Kh2 {[%clk 0:03:03.4]} 11...
Kh8 {[%clk 0:02:49.9]} 12. Be3 {[%clk 0:03:03.2]} 12... Nec6 {[%clk 0:02:47.9]}
13. Bxd4 {[%clk 0:03:03.5]} 13... Nxd4 {[%clk 0:02:47.6]} 14. Rb1 {[%clk
0:03:00.4]} 14... a5 {[%clk 0:02:46.3]} 15. exf5 {[%clk 0:02:53.8]} 15... Nxf5
{[%clk 0:02:42.3]} 16. Qd2 {[%clk 0:02:46.5]} 16... Rb8 {[%clk 0:02:22.2]} 17.
Nd5 {[%clk 0:02:32.3]} 17... Be6 {[%clk 0:02:18.3]} 18. Ne3 {[%clk 0:02:24.2]}
18... Nd4 {[%clk 0:02:13.5]} 19. Nxd4 {[%clk 0:02:22]} 19... exd4 {[%clk
0:02:12.4]} 20. Nd5 {[%clk 0:02:15.6]} 20... b5 {[%clk 0:02:09.8]} 21. b3 {[%clk
0:02:08.8]} 21... Re8 {[%clk 0:02:03]} 22. Rfe1 {[%clk 0:02:05.5]} 22... b4
{[%clk 0:02:01.4]} 23. Re2 {[%clk 0:02:00]} 23... Bf5 {[%clk 0:01:51.4]} 24.
Rbe1 {[%clk 0:01:58.5]} 24... Rxe2 {[%clk 0:01:48.9]} 25. Qxe2 {[%clk
0:01:58.6]} 25... h5 {[%clk 0:01:43.3]} 26. Be4 {[%clk 0:01:55.1]} 26... Qd7
{[%clk 0:01:35.6]} 27. Bxf5 {[%clk 0:01:23.9]} 27... Qxf5 {[%clk 0:01:36.5]} 28.
Qe4 {[%clk 0:01:20.8]} 28... a4 {[%clk 0:01:26.2]} 29. Qxf5 {[%clk 0:00:39.3]}
29... gxf5 {[%clk 0:01:27.1]} 30. Ne7 {[%clk 0:00:39.8]} 30... axb3 {[%clk
0:01:23.3]} 31. axb3 {[%clk 0:00:38.9]} 31... Ra8 {[%clk 0:01:22.5]} 32. Nxf5
{[%clk 0:00:36.6]} 32... Ra2+ {[%clk 0:01:22]} 33. Kg1 {[%clk 0:00:35.9]} 33...
Bf8 {[%clk 0:01:20.5]} 34. Re8 {[%clk 0:00:30.5]} 34... Kg8 {[%clk 0:01:19.9]}
35. Nxd6 {[%clk 0:00:24.5]} 35... Rb2 {[%clk 0:01:18]} 36. Ne4 {[%clk
0:00:22.8]} 36... Kf7 {[%clk 0:01:12]} 37. Rc8 {[%clk 0:00:22.9]} 37... Rxb3
{[%clk 0:01:10.2]} 38. Nxc5 {[%clk 0:00:23.5]} 38... Bxc5 {[%clk 0:01:00.7]} 39.
Rxc5 {[%clk 0:00:22.9]} 39... Rxd3 {[%clk 0:01:01.4]} 40. Kf2 {[%clk 0:00:18]}
40... Rc3 {[%clk 0:00:53.6]} 41. g4 {[%clk 0:00:17.7]} 41... h4 {[%clk
0:00:49.2]} 42. Kg2 {[%clk 0:00:11.5]} 42... Rg3+ {[%clk 0:00:45.2]} 43. Kh2
{[%clk 0:00:10.9]} 43... b3 {[%clk 0:00:45.9]} 44. Rb5 {[%clk 0:00:11.2]} 44...
Rc3 {[%clk 0:00:46.6]} 45. g5 {[%clk 0:00:08.8]} 45... Rc2+ {[%clk 0:00:47.1]}
46. Kg1 {[%clk 0:00:08.3]} 46... b2 {[%clk 0:00:48]} 0-1